[Event "GrandPrix_29.05"]
[Site "Chess.com"]
[Date "2020.05.29"]
[Round "7"]
[White "AsadliVugar"]
[Black "BakaPG"]
[Result "1-0"]
[WhiteElo "2413"]
[BlackElo "2206"]
[TimeControl "600+2"]
[EndTime "12:26:00 PDT"]
[Termination "AsadliVugar won by resignation"]

1. e4 {[%clk 0:10:01.9]} 1... e6 {[%clk 0:09:59.6]} 2. d3 {[%clk 0:09:59.8]}
2... d5 {[%clk 0:09:55.2]} 3. Nd2 {[%clk 0:10:00.6]} 3... Nf6 {[%clk 0:09:55.6]}
4. Ngf3 {[%clk 0:10:01.9]} 4... Bc5 {[%clk 0:09:55.2]} 5. h3 {[%clk 0:09:52.4]}
5... O-O {[%clk 0:09:51.5]} 6. g4 {[%clk 0:09:53.8]} 6... dxe4 {[%clk
0:09:49.2]} 7. dxe4 {[%clk 0:09:55.3]} 7... Nc6 {[%clk 0:09:49.8]} 8. Bg2 {[%clk
0:09:56.3]} 8... e5 {[%clk 0:09:48.8]} 9. O-O {[%clk 0:09:55.9]} 9... Be6 {[%clk
0:09:46.3]} 10. Qe2 {[%clk 0:09:55.9]} 10... Re8 {[%clk 0:09:37.1]} 11. Nc4
{[%clk 0:09:50.7]} 11... Nd7 {[%clk 0:09:33.1]} 12. c3 {[%clk 0:09:45.8]} 12...
a5 {[%clk 0:09:30.1]} 13. a4 {[%clk 0:09:20.8]} 13... f6 {[%clk 0:09:28]} 14.
Nh4 {[%clk 0:09:19.3]} 14... Nf8 {[%clk 0:09:27.2]} 15. Be3 {[%clk 0:08:46.1]}
15... Qe7 {[%clk 0:09:02.3]} 16. Nf5 {[%clk 0:08:43.2]} 16... Qf7 {[%clk
0:08:53.9]} 17. Nd2 {[%clk 0:08:06.2]} 17... Ba7 {[%clk 0:08:40.9]} 18. Qb5
{[%clk 0:07:27.2]} 18... Rab8 {[%clk 0:08:17.2]} 19. Bxa7 {[%clk 0:07:02]} 19...
Nxa7 {[%clk 0:08:15.5]} 20. Qxa5 {[%clk 0:07:03.4]} 20... Nc6 {[%clk 0:08:15.8]}
21. Qc5 {[%clk 0:07:05]} 21... Ng6 {[%clk 0:08:12.8]} 22. a5 {[%clk 0:06:55.9]}
22... Nd8 {[%clk 0:07:42.4]} 23. Qe3 {[%clk 0:06:24.6]} 23... Nf4 {[%clk
0:07:38.1]} 24. b4 {[%clk 0:06:25.6]} 24... Kh8 {[%clk 0:07:27.2]} 25. b5 {[%clk
0:06:20.6]} 25... Bd7 {[%clk 0:07:21]} 26. Rfb1 {[%clk 0:06:19.2]} 26... Nde6
{[%clk 0:07:10.1]} 27. Bf1 {[%clk 0:06:17.3]} 27... g6 {[%clk 0:07:05.5]} 28.
Ng3 {[%clk 0:06:17.5]} 28... Red8 {[%clk 0:07:03.6]} 29. a6 {[%clk 0:06:17.5]}
29... b6 {[%clk 0:06:58.1]} 30. Nf3 {[%clk 0:06:17.5]} 30... g5 {[%clk
0:06:44.6]} 31. Rd1 {[%clk 0:06:15.3]} 31... Nc5 {[%clk 0:06:43.6]} 32. Nf5
{[%clk 0:05:34.1]} 32... Ra8 {[%clk 0:06:22.3]} 33. Rab1 {[%clk 0:04:45.8]}
33... Rdc8 {[%clk 0:06:18.5]} 34. Rb2 {[%clk 0:04:45.6]} 34... Be6 {[%clk
0:06:11.3]} 35. h4 {[%clk 0:04:41.3]} 35... gxh4 {[%clk 0:06:09.6]} 36. N3xh4
{[%clk 0:04:36.6]} 36... Bxf5 {[%clk 0:05:44.5]} 37. Nxf5 {[%clk 0:04:31.7]}
37... Qg6 {[%clk 0:05:38.9]} 38. f3 {[%clk 0:04:32.2]} 38... Qg5 {[%clk
0:05:33]} 39. Rh2 {[%clk 0:04:18.4]} 39... Rd8 {[%clk 0:05:22.2]} 40. Rxd8+
{[%clk 0:03:53.1]} 40... Rxd8 {[%clk 0:05:19.7]} 41. Ra2 {[%clk 0:03:42.7]}
41... h5 {[%clk 0:05:13.3]} 42. a7 {[%clk 0:03:40.6]} 42... Ra8 {[%clk
0:05:12.3]} 43. Bc4 {[%clk 0:03:38.4]} 43... hxg4 {[%clk 0:05:06.9]} 44. Rh2+
{[%clk 0:03:28.9]} 44... Nh3+ {[%clk 0:05:07.3]} 45. Kf1 {[%clk 0:03:26.6]}
45... Rxa7 {[%clk 0:04:53]} 46. Qxg5 {[%clk 0:03:22.3]} 46... fxg5 {[%clk
0:04:47.8]} 47. fxg4 {[%clk 0:03:23.6]} 47... Ra1+ {[%clk 0:04:21]} 48. Ke2
{[%clk 0:03:23.4]} 1-0

[Event "GrandPrix_29.05"]
[Site "Chess.com"]
[Date "2020.05.29"]
[Round "7"]
[White "FCLitras"]
[Black "Arasvard"]
[Result "1/2-1/2"]
[WhiteElo "1843"]
[BlackElo "2029"]
[TimeControl "600+2"]
[EndTime "12:26:07 PDT"]
[Termination "Game drawn by agreement"]

1. d4 {[%clk 0:09:49.4]} 1... Nf6 {[%clk 0:09:59.3]} 2. c4 {[%clk 0:09:48.1]}
2... c5 {[%clk 0:10:00.3]} 3. d5 {[%clk 0:09:49]} 3... b5 {[%clk 0:10:01.2]} 4.
cxb5 {[%clk 0:09:50.1]} 4... a6 {[%clk 0:10:02.6]} 5. bxa6 {[%clk 0:09:51.1]}
5... g6 {[%clk 0:10:04.2]} 6. Nc3 {[%clk 0:09:51.3]} 6... Bg7 {[%clk 0:10:05.8]}
7. Nf3 {[%clk 0:09:52.3]} 7... O-O {[%clk 0:10:06.4]} 8. g3 {[%clk 0:09:53.5]}
8... d6 {[%clk 0:10:07.1]} 9. Bg2 {[%clk 0:09:54.6]} 9... Nbd7 {[%clk
0:10:08.7]} 10. O-O {[%clk 0:09:51.1]} 10... Nb6 {[%clk 0:10:09.1]} 11. Nd2
{[%clk 0:09:41.7]} 11... Bxa6 {[%clk 0:09:59.9]} 12. Rb1 {[%clk 0:09:34.2]}
12... Nfd7 {[%clk 0:09:45.7]} 13. Re1 {[%clk 0:09:23.3]} 13... Ne5 {[%clk
0:09:21.7]} 14. Qc2 {[%clk 0:09:15.8]} 14... Nbc4 {[%clk 0:08:31.6]} 15. Nxc4
{[%clk 0:09:07.3]} 15... Nxc4 {[%clk 0:08:33.5]} 16. b3 {[%clk 0:09:04.7]} 16...
Qa5 {[%clk 0:08:34.3]} 17. bxc4 {[%clk 0:08:40]} 17... Qxc3 {[%clk 0:08:33.5]}
18. Qd1 {[%clk 0:08:26]} 18... Bxc4 {[%clk 0:07:32.1]} 19. Bb2 {[%clk
0:08:26.5]} 19... Qa5 {[%clk 0:07:29.4]} 20. Bxg7 {[%clk 0:08:26.4]} 20... Kxg7
{[%clk 0:07:31.3]} 21. e4 {[%clk 0:08:17.8]} 21... Rfb8 {[%clk 0:06:59.1]} 22.
Rxb8 {[%clk 0:08:11.3]} 22... Rxb8 {[%clk 0:07:01]} 23. e5 {[%clk 0:08:12.5]}
23... dxe5 {[%clk 0:06:21.9]} 24. Rxe5 {[%clk 0:07:43.3]} 24... Qxa2 {[%clk
0:06:21.5]} 25. Re1 {[%clk 0:07:43.9]} 25... Rb2 {[%clk 0:06:00.9]} 26. Qf3
{[%clk 0:07:27.5]} 26... Rb1 {[%clk 0:05:35.8]} 27. Qc3+ {[%clk 0:07:28.2]}
27... f6 {[%clk 0:05:33.5]} 28. h4 {[%clk 0:07:26.8]} 28... Qb3 {[%clk
0:05:04.9]} 29. Qa5 {[%clk 0:06:53]} 29... Rxe1+ {[%clk 0:04:08.4]} 30. Qxe1
{[%clk 0:06:52.8]} 30... Kf8 {[%clk 0:04:05.1]} 31. Qa5 {[%clk 0:06:46.3]} 31...
Qb5 {[%clk 0:03:57.5]} 32. Qd8+ {[%clk 0:06:41.9]} 32... Qe8 {[%clk 0:03:58.5]}
33. Qc7 {[%clk 0:06:39.2]} 33... Qb5 {[%clk 0:03:58]} 34. Qc8+ {[%clk
0:06:28.1]} 34... Kg7 {[%clk 0:03:53.9]} 35. Qc7 {[%clk 0:06:19.9]} 35... Kf8
{[%clk 0:03:37.9]} 1/2-1/2

[Event "GrandPrix_29.05"]
[Site "Chess.com"]
[Date "2020.05.29"]
[Round "7"]
[White "Igor_Lysyj"]
[Black "kpio91"]
[Result "1-0"]
[WhiteElo "2631"]
[BlackElo "2601"]
[TimeControl "600+2"]
[EndTime "12:26:25 PDT"]
[Termination "Igor_Lysyj won by resignation"]

1. d4 {[%clk 0:09:59.6]} 1... f5 {[%clk 0:10:01.4]} 2. g3 {[%clk 0:09:57.9]}
2... Nf6 {[%clk 0:10:02.1]} 3. Bg2 {[%clk 0:09:58.1]} 3... g6 {[%clk 0:10:03.4]}
4. Nd2 {[%clk 0:09:57.4]} 4... Bg7 {[%clk 0:09:57.8]} 5. c3 {[%clk 0:09:56.6]}
5... Nc6 {[%clk 0:09:42.5]} 6. b4 {[%clk 0:09:51.4]} 6... e6 {[%clk 0:09:41.2]}
7. b5 {[%clk 0:09:46]} 7... Ne7 {[%clk 0:09:42.2]} 8. Ngf3 {[%clk 0:09:45.5]}
8... O-O {[%clk 0:09:42.5]} 9. O-O {[%clk 0:09:44.7]} 9... a6 {[%clk 0:09:39]}
10. c4 {[%clk 0:09:32]} 10... axb5 {[%clk 0:09:34.6]} 11. cxb5 {[%clk
0:09:32.9]} 11... Ned5 {[%clk 0:09:36.2]} 12. Qb3 {[%clk 0:09:19.1]} 12... d6
{[%clk 0:09:23.8]} 13. Bb2 {[%clk 0:09:06.7]} 13... h6 {[%clk 0:09:03.1]} 14.
Rfe1 {[%clk 0:08:55.6]} 14... g5 {[%clk 0:09:03.5]} 15. e4 {[%clk 0:08:45.9]}
15... fxe4 {[%clk 0:09:03]} 16. Nxe4 {[%clk 0:08:47]} 16... Nxe4 {[%clk
0:09:04]} 17. Rxe4 {[%clk 0:08:47.4]} 17... Qf6 {[%clk 0:09:05.7]} 18. Rae1
{[%clk 0:08:30.1]} 18... Qf5 {[%clk 0:08:27.9]} 19. h3 {[%clk 0:08:18.8]} 19...
Bd7 {[%clk 0:08:14.5]} 20. g4 {[%clk 0:06:42]} 20... Qf7 {[%clk 0:07:44.1]} 21.
Bc1 {[%clk 0:06:42]} 21... Ra5 {[%clk 0:06:38.4]} 22. a4 {[%clk 0:06:37.4]}
22... Kh8 {[%clk 0:05:16.3]} 23. Bd2 {[%clk 0:06:33.9]} 23... Raa8 {[%clk
0:05:15.2]} 24. a5 {[%clk 0:06:32]} 24... c6 {[%clk 0:04:45]} 25. bxc6 {[%clk
0:06:00.6]} 25... Bxc6 {[%clk 0:04:44.5]} 26. Rxe6 {[%clk 0:05:34.9]} 26... Nf4
{[%clk 0:04:32.3]} 27. Bxf4 {[%clk 0:05:29.3]} 27... Qxf4 {[%clk 0:04:32]} 28.
d5 {[%clk 0:05:26.3]} 28... Ba4 {[%clk 0:04:10.1]} 29. Qb6 {[%clk 0:04:38.6]}
29... Bc2 {[%clk 0:03:50.9]} 30. Qxb7 {[%clk 0:04:03.8]} 30... Rxa5 {[%clk
0:03:32.4]} 31. Qc7 {[%clk 0:03:12.6]} 31... Rc5 {[%clk 0:03:30.8]} 32. Qxd6
{[%clk 0:03:03.5]} 32... Qxd6 {[%clk 0:03:31.6]} 33. Rxd6 {[%clk 0:03:04]} 33...
Bb3 {[%clk 0:03:32.4]} 34. Ne5 {[%clk 0:02:46.6]} 34... Kg8 {[%clk 0:03:31.7]}
35. Nd7 {[%clk 0:02:33.6]} 35... Rd8 {[%clk 0:03:32.6]} 36. Nxc5 {[%clk
0:02:33.2]} 1-0

[Event "GrandPrix_29.05"]
[Site "Chess.com"]
[Date "2020.05.29"]
[Round "7"]
[White "ALeks_Ivlev"]
[Black "Alex_Molchanov"]
[Result "1-0"]
[WhiteElo "2089"]
[BlackElo "2050"]
[TimeControl "600+2"]
[EndTime "12:26:25 PDT"]
[Termination "ALeks_Ivlev won by checkmate"]

1. d4 {[%clk 0:10:01.9]} 1... Nf6 {[%clk 0:09:54.6]} 2. c4 {[%clk 0:10:02.4]}
2... e6 {[%clk 0:09:55.2]} 3. g3 {[%clk 0:09:58.5]} 3... c5 {[%clk 0:09:46.2]}
4. d5 {[%clk 0:09:59.3]} 4... exd5 {[%clk 0:09:45.2]} 5. cxd5 {[%clk 0:10:01.2]}
5... d6 {[%clk 0:09:46.8]} 6. Nc3 {[%clk 0:10:01.9]} 6... g6 {[%clk 0:09:48.2]}
7. Nf3 {[%clk 0:10:02.7]} 7... Bg7 {[%clk 0:09:49.8]} 8. Bg2 {[%clk 0:10:03.8]}
8... O-O {[%clk 0:09:50.9]} 9. O-O {[%clk 0:10:05.4]} 9... Nbd7 {[%clk
0:09:51.9]} 10. Bf4 {[%clk 0:10:05.8]} 10... Nb6 {[%clk 0:09:51]} 11. Nd2 {[%clk
0:10:03.8]} 11... Nh5 {[%clk 0:09:38.4]} 12. Be3 {[%clk 0:10:04.6]} 12... Re8
{[%clk 0:09:38.4]} 13. a4 {[%clk 0:10:02]} 13... Nd7 {[%clk 0:09:01.2]} 14. Nc4
{[%clk 0:10:00.9]} 14... Ne5 {[%clk 0:09:01.9]} 15. Na3 {[%clk 0:09:58.8]} 15...
a6 {[%clk 0:08:53.3]} 16. h3 {[%clk 0:09:41.3]} 16... f5 {[%clk 0:08:46.1]} 17.
Kh2 {[%clk 0:09:37.5]} 17... Qf6 {[%clk 0:08:28.4]} 18. Qd2 {[%clk 0:09:27]}
18... Nf7 {[%clk 0:08:29.3]} 19. Nc4 {[%clk 0:09:23.8]} 19... g5 {[%clk
0:08:25.8]} 20. f4 {[%clk 0:09:09.3]} 20... gxf4 {[%clk 0:08:24.9]} 21. gxf4
{[%clk 0:09:10.5]} 21... Qh4 {[%clk 0:08:12.2]} 22. Qe1 {[%clk 0:09:02.8]} 22...
Qxe1 {[%clk 0:08:00.6]} 23. Rfxe1 {[%clk 0:09:02.3]} 23... Bd7 {[%clk
0:07:55.8]} 24. Bd2 {[%clk 0:08:48.1]} 24... b5 {[%clk 0:07:46.7]} 25. Nb6
{[%clk 0:08:48.3]} 25... Rad8 {[%clk 0:07:38.8]} 26. Nxd7 {[%clk 0:08:46.8]}
26... Rxd7 {[%clk 0:07:40.7]} 27. axb5 {[%clk 0:08:47.9]} 27... axb5 {[%clk
0:07:41]} 28. Bf3 {[%clk 0:08:46.2]} 28... Nf6 {[%clk 0:07:35.9]} 29. Nxb5
{[%clk 0:08:24.2]} 29... Rb7 {[%clk 0:07:32.2]} 30. Na3 {[%clk 0:08:17.7]} 30...
Rxb2 {[%clk 0:07:11.7]} 31. Nc4 {[%clk 0:08:17.2]} 31... Rc2 {[%clk 0:07:06.1]}
32. Rec1 {[%clk 0:08:12.4]} 32... Rxc4 {[%clk 0:03:39.4]} 33. Rxc4 {[%clk
0:08:09.8]} 33... Ng4+ {[%clk 0:03:33.9]} 34. hxg4 {[%clk 0:08:07.8]} 34... Bxa1
{[%clk 0:03:23.8]} 35. gxf5 {[%clk 0:08:01.8]} 35... Nh6 {[%clk 0:03:06.7]} 36.
e4 {[%clk 0:08:00.5]} 36... Rb8 {[%clk 0:03:01.1]} 37. Ba5 {[%clk 0:07:58.2]}
37... Nf7 {[%clk 0:02:31.7]} 38. Ra4 {[%clk 0:07:07.7]} 38... Bd4 {[%clk
0:02:23.4]} 39. Bc7 {[%clk 0:06:21.3]} 39... Rb2+ {[%clk 0:02:08.1]} 40. Kg3
{[%clk 0:06:21.4]} 40... Rb3 {[%clk 0:02:09.6]} 41. Ra6 {[%clk 0:06:14.4]} 41...
h5 {[%clk 0:02:08.8]} 42. Bxd6 {[%clk 0:05:58.4]} 42... h4+ {[%clk 0:02:07.3]}
43. Kg4 {[%clk 0:05:59.6]} 43... Nh6+ {[%clk 0:01:05.9]} 44. Kh5 {[%clk
0:05:59.1]} 44... Rxf3 {[%clk 0:01:04.7]} 45. Kxh6 {[%clk 0:05:50.9]} 45... h3
{[%clk 0:01:03.6]} 46. Ra8+ {[%clk 0:05:43.8]} 46... Kf7 {[%clk 0:01:04.8]} 47.
Rf8# {[%clk 0:05:44.8]} 1-0

[Event "GrandPrix_29.05"]
[Site "Chess.com"]
[Date "2020.05.29"]
[Round "7"]
[White "OhanyanEminChess"]
[Black "Karinaa87"]
[Result "1-0"]
[WhiteElo "2057"]
[BlackElo "1854"]
[TimeControl "600+2"]
[EndTime "12:26:27 PDT"]
[Termination "OhanyanEminChess won by resignation"]

1. e4 {[%clk 0:09:50.2]} 1... e5 {[%clk 0:09:59.2]} 2. Nf3 {[%clk 0:09:50]} 2...
Nc6 {[%clk 0:09:59.8]} 3. Bc4 {[%clk 0:09:45.2]} 3... Nf6 {[%clk 0:10:00.2]} 4.
d3 {[%clk 0:09:37.7]} 4... Be7 {[%clk 0:10:00.6]} 5. O-O {[%clk 0:09:36.4]} 5...
O-O {[%clk 0:10:00.9]} 6. Re1 {[%clk 0:09:33.9]} 6... d6 {[%clk 0:09:56]} 7. h3
{[%clk 0:09:34.8]} 7... Na5 {[%clk 0:09:56.1]} 8. Bb3 {[%clk 0:09:35.6]} 8...
Nxb3 {[%clk 0:09:56.6]} 9. axb3 {[%clk 0:09:37.5]} 9... c6 {[%clk 0:09:54.9]}
10. Nbd2 {[%clk 0:09:36.6]} 10... Ne8 {[%clk 0:09:48.2]} 11. d4 {[%clk
0:09:26.9]} 11... Qc7 {[%clk 0:09:45.5]} 12. Nc4 {[%clk 0:09:26.6]} 12... Bf6
{[%clk 0:09:43.3]} 13. dxe5 {[%clk 0:09:26.5]} 13... dxe5 {[%clk 0:09:45.2]} 14.
Bd2 {[%clk 0:09:16.3]} 14... b5 {[%clk 0:09:26.3]} 15. Ba5 {[%clk 0:08:50.4]}
15... Qe7 {[%clk 0:09:24.8]} 16. Ne3 {[%clk 0:08:50]} 16... g6 {[%clk
0:09:00.3]} 17. Qd2 {[%clk 0:08:36.7]} 17... Be6 {[%clk 0:08:42.3]} 18. Qb4
{[%clk 0:07:40]} 18... Qb7 {[%clk 0:08:10.8]} 19. Qc5 {[%clk 0:06:29.8]} 19...
Nc7 {[%clk 0:07:33.4]} 20. Nxe5 {[%clk 0:06:17.4]} 20... Na6 {[%clk 0:07:23.7]}
21. Qxc6 {[%clk 0:06:16.7]} 21... Qxc6 {[%clk 0:07:18.6]} 22. Nxc6 {[%clk
0:06:18.6]} 22... Rac8 {[%clk 0:06:53.1]} 23. Nxa7 {[%clk 0:04:55.3]} 23... Rb8
{[%clk 0:06:36.3]} 24. Bc3 {[%clk 0:03:57.3]} 24... Bxc3 {[%clk 0:06:33.3]} 25.
bxc3 {[%clk 0:03:59.2]} 25... Nc5 {[%clk 0:06:32.4]} 26. Nc6 {[%clk 0:03:59.8]}
26... Rb6 {[%clk 0:06:29.6]} 27. Ne7+ {[%clk 0:04:00.5]} 27... Kg7 {[%clk
0:06:29.4]} 28. N7d5 {[%clk 0:04:02.1]} 28... Rd6 {[%clk 0:06:27]} 29. f3 {[%clk
0:03:19.2]} 29... f5 {[%clk 0:06:27]} 30. Ra7+ {[%clk 0:02:33.8]} 30... Rf7
{[%clk 0:06:26.9]} 31. Rxf7+ {[%clk 0:02:34]} 31... Kxf7 {[%clk 0:06:28.8]} 32.
c4 {[%clk 0:02:12.3]} 32... fxe4 {[%clk 0:06:26.3]} 33. fxe4 {[%clk 0:02:13.3]}
33... Nxe4 {[%clk 0:06:21.1]} 34. Nf4 {[%clk 0:01:31.1]} 34... Bd7 {[%clk
0:06:06.4]} 35. Ned5 {[%clk 0:01:09.1]} 35... Nc5 {[%clk 0:05:32.3]} 36. Re7+
{[%clk 0:01:08.8]} 36... Kg8 {[%clk 0:05:28.4]} 37. b4 {[%clk 0:01:09.2]} 37...
Na4 {[%clk 0:05:25]} 38. Rxd7 {[%clk 0:01:08.8]} 38... Rxd7 {[%clk 0:05:24.7]}
39. Nf6+ {[%clk 0:01:09.8]} 39... Kf7 {[%clk 0:05:26.1]} 40. Nxd7 {[%clk
0:01:11.1]} 40... bxc4 {[%clk 0:05:27.3]} 41. Ne5+ {[%clk 0:01:12.3]} 41... Kf6
{[%clk 0:05:28.2]} 42. Nxc4 {[%clk 0:01:14.1]} 42... Kf5 {[%clk 0:05:29.5]} 43.
Nd3 {[%clk 0:01:15.3]} 43... Ke4 {[%clk 0:05:29.9]} 44. b5 {[%clk 0:01:13.1]}
44... Kd4 {[%clk 0:05:29.9]} 45. b6 {[%clk 0:01:13.7]} 1-0

[Event "GrandPrix_29.05"]
[Site "Chess.com"]
[Date "2020.05.29"]
[Round "7"]
[White "XeresLt"]
[Black "Happy1712Drummer"]
[Result "0-1"]
[WhiteElo "1911"]
[BlackElo "2217"]
[TimeControl "600+2"]
[EndTime "12:26:28 PDT"]
[Termination "Happy1712Drummer won by checkmate"]

1. e4 {[%clk 0:10:01.9]} 1... c6 {[%clk 0:10:00.3]} 2. d4 {[%clk 0:10:02.7]}
2... d5 {[%clk 0:10:02.2]} 3. exd5 {[%clk 0:10:03.9]} 3... cxd5 {[%clk
0:10:02.5]} 4. c4 {[%clk 0:10:05.5]} 4... Nf6 {[%clk 0:10:03]} 5. Nc3 {[%clk
0:10:06.8]} 5... e6 {[%clk 0:10:02.8]} 6. Nf3 {[%clk 0:10:07.5]} 6... Be7 {[%clk
0:10:00.1]} 7. cxd5 {[%clk 0:10:08.5]} 7... Nxd5 {[%clk 0:10:00.4]} 8. Bd3
{[%clk 0:10:09.6]} 8... Nc6 {[%clk 0:10:00.6]} 9. O-O {[%clk 0:10:10.3]} 9...
O-O {[%clk 0:10:00.1]} 10. Re1 {[%clk 0:10:10.1]} 10... Nf6 {[%clk 0:09:49.5]}
11. a3 {[%clk 0:09:58.5]} 11... b6 {[%clk 0:09:46.8]} 12. Be3 {[%clk 0:09:45.2]}
12... Bb7 {[%clk 0:09:45.7]} 13. Rc1 {[%clk 0:09:38.6]} 13... Rc8 {[%clk
0:09:45.2]} 14. h3 {[%clk 0:08:33.4]} 14... Na5 {[%clk 0:09:35.1]} 15. Ne5
{[%clk 0:08:29.4]} 15... Nd5 {[%clk 0:09:30.8]} 16. Bd2 {[%clk 0:07:54.4]} 16...
f5 {[%clk 0:08:42]} 17. b4 {[%clk 0:07:48.2]} 17... Nxc3 {[%clk 0:08:25.5]} 18.
Bxc3 {[%clk 0:07:48.1]} 18... Qd5 {[%clk 0:08:18.3]} 19. Nf3 {[%clk 0:07:25.7]}
19... Nc4 {[%clk 0:07:38]} 20. Qe2 {[%clk 0:07:08.3]} 20... Rf6 {[%clk
0:07:22.9]} 21. a4 {[%clk 0:06:21.1]} 21... Rg6 {[%clk 0:07:07.2]} 22. Kh1
{[%clk 0:06:13.2]} 22... a6 {[%clk 0:05:58.4]} 23. Rg1 {[%clk 0:05:21.1]} 23...
b5 {[%clk 0:05:49]} 24. axb5 {[%clk 0:05:19.7]} 24... axb5 {[%clk 0:05:50.5]}
25. Ra1 {[%clk 0:04:52]} 25... Bd6 {[%clk 0:05:47.7]} 26. Qd1 {[%clk 0:02:34]}
26... Bb8 {[%clk 0:05:33.6]} 27. Rc1 {[%clk 0:02:02.4]} 27... Rh6 {[%clk
0:04:50.1]} 28. Be2 {[%clk 0:01:53.8]} 28... Qd6 {[%clk 0:04:38.7]} 29. d5
{[%clk 0:01:37.4]} 29... Bxd5 {[%clk 0:04:29.5]} 30. Be5 {[%clk 0:01:34.4]}
30... Qxe5 {[%clk 0:04:21.6]} 31. Nxe5 {[%clk 0:01:18.4]} 31... Rxh3# {[%clk
0:04:20.2]} 0-1

[Event "GrandPrix_29.05"]
[Site "Chess.com"]
[Date "2020.05.29"]
[Round "7"]
[White "WhiteCapital80"]
[Black "Saqo007"]
[Result "0-1"]
[WhiteElo "2140"]
[BlackElo "2130"]
[TimeControl "600+2"]
[EndTime "12:26:29 PDT"]
[Termination "Saqo007 won by resignation"]

1. e4 {[%clk 0:10:01.9]} 1... c5 {[%clk 0:09:59.6]} 2. Nf3 {[%clk 0:10:02.4]}
2... d6 {[%clk 0:10:00.4]} 3. d4 {[%clk 0:10:03.5]} 3... cxd4 {[%clk 0:10:02.3]}
4. Nxd4 {[%clk 0:10:04.7]} 4... Nf6 {[%clk 0:10:03.6]} 5. Nc3 {[%clk 0:10:05.5]}
5... g6 {[%clk 0:10:03.9]} 6. Be3 {[%clk 0:10:05.8]} 6... Bg7 {[%clk 0:10:04.2]}
7. f3 {[%clk 0:09:59.2]} 7... O-O {[%clk 0:10:04.4]} 8. Qd2 {[%clk 0:10:00.2]}
8... Nc6 {[%clk 0:10:04.9]} 9. Bc4 {[%clk 0:10:01]} 9... Bd7 {[%clk 0:10:05.4]}
10. O-O-O {[%clk 0:10:01.5]} 10... Rc8 {[%clk 0:10:06.3]} 11. Bb3 {[%clk
0:10:02.3]} 11... Nxd4 {[%clk 0:10:07.9]} 12. Bxd4 {[%clk 0:10:03.2]} 12... b5
{[%clk 0:10:09.8]} 13. a3 {[%clk 0:09:53.9]} 13... a5 {[%clk 0:10:08.7]} 14.
Rhe1 {[%clk 0:09:51.2]} 14... b4 {[%clk 0:10:05.7]} 15. axb4 {[%clk 0:09:50.4]}
15... axb4 {[%clk 0:10:06.6]} 16. Nd5 {[%clk 0:09:52]} 16... Nxd5 {[%clk
0:10:07.4]} 17. Bxg7 {[%clk 0:09:52.6]} 17... Kxg7 {[%clk 0:10:08.3]} 18. exd5
{[%clk 0:09:52.1]} 18... Re8 {[%clk 0:09:53.7]} 19. Qxb4 {[%clk 0:09:29.5]}
19... Rb8 {[%clk 0:09:51.7]} 20. Qd4+ {[%clk 0:09:29.4]} 20... Kg8 {[%clk
0:09:52.9]} 21. Kd2 {[%clk 0:09:30.1]} 21... Qa5+ {[%clk 0:08:51.4]} 22. Ke2
{[%clk 0:08:30.6]} 22... Rb4 {[%clk 0:08:41.2]} 23. Qe3 {[%clk 0:07:38.9]} 23...
e6 {[%clk 0:07:28.5]} 24. dxe6 {[%clk 0:06:59.1]} 24... Rxb3 {[%clk 0:05:27.1]}
25. Qxb3 {[%clk 0:06:16.4]} 25... Bxe6 {[%clk 0:05:27.3]} 26. Qc3 {[%clk
0:05:39]} 26... Qf5 {[%clk 0:04:04.5]} 27. Kf2 {[%clk 0:05:07.1]} 27... Rc8
{[%clk 0:04:02.2]} 28. Qd4 {[%clk 0:05:01.4]} 28... Rxc2+ {[%clk 0:03:48.4]} 29.
Rd2 {[%clk 0:04:59.3]} 29... Rc6 {[%clk 0:03:14.6]} 30. Ra1 {[%clk 0:04:48.8]}
30... h5 {[%clk 0:02:54.8]} 31. Ra8+ {[%clk 0:04:44.5]} 31... Bc8 {[%clk
0:02:54.4]} 32. Qe4 {[%clk 0:03:37.9]} 32... Qc5+ {[%clk 0:02:46.9]} 33. Kg3
{[%clk 0:03:36.6]} 33... Qg5+ {[%clk 0:02:26.7]} 0-1

[Event "GrandPrix_29.05"]
[Site "Chess.com"]
[Date "2020.05.29"]
[Round "7"]
[White "Todorovic1991"]
[Black "Mizner"]
[Result "0-1"]
[WhiteElo "1757"]
[BlackElo "2088"]
[TimeControl "600+2"]
[EndTime "12:26:32 PDT"]
[Termination "Mizner won by resignation"]

1. Nf3 {[%clk 0:10:01.9]} 1... d5 {[%clk 0:09:59.9]} 2. c4 {[%clk 0:09:58.6]}
2... e6 {[%clk 0:09:57.6]} 3. d4 {[%clk 0:09:57.9]} 3... Nf6 {[%clk 0:09:56.9]}
4. Nc3 {[%clk 0:09:58.8]} 4... c5 {[%clk 0:09:57.6]} 5. cxd5 {[%clk 0:09:59]}
5... Nxd5 {[%clk 0:09:59.5]} 6. e4 {[%clk 0:09:59.5]} 6... Nxc3 {[%clk
0:10:00.6]} 7. bxc3 {[%clk 0:10:00.7]} 7... cxd4 {[%clk 0:10:02.2]} 8. cxd4
{[%clk 0:10:01.7]} 8... Bb4+ {[%clk 0:10:03.7]} 9. Bd2 {[%clk 0:10:02.7]} 9...
Bxd2+ {[%clk 0:10:05.3]} 10. Qxd2 {[%clk 0:10:03.8]} 10... O-O {[%clk
0:10:07.2]} 11. Bc4 {[%clk 0:10:04.3]} 11... Nd7 {[%clk 0:10:08.7]} 12. O-O
{[%clk 0:10:05]} 12... b6 {[%clk 0:10:10.1]} 13. Rad1 {[%clk 0:10:04.5]} 13...
Bb7 {[%clk 0:10:11]} 14. Rfe1 {[%clk 0:10:05.2]} 14... Rc8 {[%clk 0:10:12.4]}
15. Bd3 {[%clk 0:10:03]} 15... h6 {[%clk 0:09:52.1]} 16. Bb1 {[%clk 0:10:03]}
16... Qc7 {[%clk 0:09:35.1]} 17. d5 {[%clk 0:08:49.1]} 17... exd5 {[%clk
0:09:20.6]} 18. exd5 {[%clk 0:08:49.2]} 18... Qd6 {[%clk 0:09:18.9]} 19. Bf5
{[%clk 0:08:30]} 19... Rc5 {[%clk 0:09:00.9]} 20. Bxd7 {[%clk 0:08:24.9]} 20...
Rxd5 {[%clk 0:09:01.8]} 21. Qe2 {[%clk 0:08:15.7]} 21... Qxd7 {[%clk 0:09:01.1]}
22. Rxd5 {[%clk 0:08:13.9]} 22... Qxd5 {[%clk 0:07:24.8]} 23. Rd1 {[%clk
0:08:13.6]} 23... Qf5 {[%clk 0:07:25.5]} 24. Nd4 {[%clk 0:08:03.3]} 24... Qg6
{[%clk 0:07:12.6]} 25. f3 {[%clk 0:08:02.5]} 25... Qg5 {[%clk 0:06:31.5]} 26.
Nb3 {[%clk 0:07:48.8]} 26... Rd8 {[%clk 0:06:25.9]} 27. Rxd8+ {[%clk 0:07:47.4]}
27... Qxd8 {[%clk 0:06:27.8]} 28. h3 {[%clk 0:07:48.2]} 28... Bd5 {[%clk
0:05:56]} 29. Qd3 {[%clk 0:07:04.1]} 29... Qg5 {[%clk 0:05:38.5]} 30. Nd2 {[%clk
0:06:30]} 30... Bxa2 {[%clk 0:05:24.2]} 31. Ne4 {[%clk 0:06:30.3]} 31... Qc1+
{[%clk 0:05:24]} 32. Kh2 {[%clk 0:06:10.5]} 32... Qc7+ {[%clk 0:05:24.4]} 33.
Kg1 {[%clk 0:06:10.8]} 33... Be6 {[%clk 0:04:39.8]} 34. Qb5 {[%clk 0:06:09.2]}
34... Qd7 {[%clk 0:04:16.9]} 35. Qe5 {[%clk 0:06:07.5]} 35... f6 {[%clk
0:04:06.7]} 36. Qb8+ {[%clk 0:06:06.3]} 36... Kh7 {[%clk 0:04:07.9]} 37. Nd6
{[%clk 0:05:50.1]} 37... Bd5 {[%clk 0:04:01.1]} 38. Qf8 {[%clk 0:05:38.3]} 38...
b5 {[%clk 0:03:37.6]} 39. Nc8 {[%clk 0:04:51.8]} 39... b4 {[%clk 0:03:12.8]} 40.
Qc5 {[%clk 0:04:36.3]} 40... b3 {[%clk 0:03:00.1]} 41. Ne7 {[%clk 0:04:27.2]}
41... Bf7 {[%clk 0:02:05.6]} 0-1